fUST/lending_fUST_20240828
["ID","MTS","AMOUNT","RATE_DAILY","PERIOD"]
[336450745,1724831456520,-2576.32,0.00013698,2]
[336450746,1724831456530,-3000.0,0.00013699,2]
[336450747,1724831456540,-286.7201894,0.00013699,2]
[336450748,1724831456551,-500.0,0.00013699,2]
[336450749,1724831456560,-500.0,0.00013699,2]
[336450750,1724831456572,-500.0,0.00013699,2]
[336450751,1724831456584,-500.0,0.00013699,2]
[336450752,1724831456593,-363.76989466,0.00013699,2]
[336450753,1724831456603,-397.31,0.00013972,2]
[336450754,1724831456613,-500.0,0.00013972,2]
[336450755,1724831456624,-500.0,0.00013972,2]
[336450756,1724831456635,-500.0,0.00013972,2]
[336450757,1724831456645,-500.0,0.00013972,2]
[336450758,1724831456655,-1164.21,0.00013972,2]
[336450759,1724831456665,-500.0,0.00013972,2]
[336450760,1724831456675,-2077.7,0.00013972,2]
[336450761,1724831456684,-848.26,0.00013972,2]
[336450762,1724831456695,-965.99,0.00013972,2]
[336450763,1724831456707,-174.75,0.00013972,2]
[336450764,1724831456718,-500.0,0.00013972,2]
[336450765,1724831456729,-500.0,0.00013972,2]
[336450766,1724831456739,-500.0,0.00013972,2]
[336450767,1724831456749,-500.0,0.00013972,2]
[336450768,1724831456759,-6837.97,0.00013972,2]
[336450769,1724831456770,-500.0,0.00013972,2]
[336450770,1724831456780,-500.0,0.00013972,2]
[336450771,1724831456790,-675.44,0.00013972,2]
[336450772,1724831456800,-500.0,0.00013972,2]
[336450773,1724831456810,-500.0,0.00013972,2]
[336450774,1724831456820,-500.0,0.00013972,2]
[336450775,1724831456830,-500.0,0.00013972,2]
[336450776,1724831456839,-616.07,0.00013972,2]
[336450777,1724831456848,-500.0,0.00013972,2]
[336450778,1724831456858,-675.48,0.00013972,2]
[336450779,1724831456868,-1892.98,0.00013972,2]
[336450780,1724831456878,-500.0,0.00013972,2]
[336450781,1724831456887,-500.0,0.00013972,2]
[336450782,1724831456897,-500.0,0.00013972,2]
[336450783,1724831456907,-500.0,0.00013972,2]
[336450784,1724831456917,-500.0,0.00013972,2]
[336450785,1724831456926,-3381.91,0.00013972,2]
[336450786,1724831456935,-500.0,0.00013972,2]
[336450787,1724831456944,-1070.06,0.00013972,2]
[336450788,1724831456954,-634.31519294,0.00013972,2]
[336450789,1724831456963,-1044.45,0.00013972,2]
[336450790,1724831456973,-2576.32,0.00013972,2]
[336450791,1724831456982,-236.11350432,0.00014025,2]
[336450792,1724831456992,-324.0,0.00014059,2]
[336450793,1724831457001,-175.39,0.00014246,2]
[336450794,1724831457011,-500.0,0.00014246,2]
[336450795,1724831457022,-500.0,0.00014246,2]
[336450796,1724831457032,-500.0,0.00014246,2]
[336450797,1724831457042,-1164.21,0.00014246,2]
[336450798,1724831457052,-500.0,0.00014246,2]
[336450799,1724831457061,-2077.7,0.00014246,2]
[336450800,1724831457070,-848.26,0.00014246,2]
[336450801,1724831457080,-965.99,0.00014246,2]
[336450802,1724831457089,-500.0,0.00014246,2]
[336450803,1724831457099,-500.0,0.00014246,2]
[336450804,1724831457108,-500.0,0.00014246,2]
[336450805,1724831457117,-500.0,0.00014246,2]
[336450806,1724831457238,-6837.97,0.00014246,2]
[336450807,1724831457248,-500.0,0.00014246,2]
[336450808,1724831457258,-358.33,0.00014246,2]
[336450809,1724831457268,-675.44,0.00014246,2]
[336450810,1724831457278,-500.0,0.00014246,2]
[336450811,1724831457287,-500.0,0.00014246,2]
[336450812,1724831457297,-500.0,0.00014246,2]
[336450813,1724831457307,-500.0,0.00014246,2]
[336450814,1724831457317,-616.07,0.00014246,2]
[336450815,1724831457327,-612.1324918,0.00014246,2]
[336450816,1724831457337,-675.48,0.00014246,2]
[336450817,1724831457346,-1892.98,0.00014246,2]
[336450818,1724831457355,-214.2,0.00014246,2]
[336450819,1724831457365,-500.0,0.00014246,2]
[336450820,1724831457374,-500.0,0.00014246,2]
[336450821,1724831457383,-500.0,0.00014246,2]
[336450822,1724831457393,-500.0,0.00014246,2]
[336450823,1724831457403,-3381.91,0.00014246,2]
[336450824,1724831457413,-217.75,0.00014246,2]
[336450825,1724831457422,-1070.06,0.00014246,2]
[336450826,1724831457432,-1044.45,0.00014246,2]
[336450827,1724831457441,-2576.32,0.00014246,2]
[336450828,1724831457453,-623.333332,0.00014247,2]
[336450829,1724831457462,-158.333335,0.00014247,2]
[336450830,1724831457471,-150.112233,0.000143,2]
[336450831,1724831457481,-500.0,0.0001452,2]
[336450832,1724831457491,-1164.21,0.0001452,2]
[336450833,1724831457500,-500.0,0.0001452,2]
[336450834,1724831457511,-2077.7,0.0001452,2]
[336450835,1724831457521,-848.26,0.0001452,2]
[336450836,1724831457534,-965.99,0.0001452,2]
[336450837,1724831457544,-501.38354752,0.0001452,2]
[336450838,1724831457554,-307.99,0.0001452,2]
[336450839,1724831457564,-269.72,0.0001452,2]
[336450840,1724831457573,-500.0,0.0001452,2]
[336450841,1724831457582,-6837.97,0.0001452,2]
[336450842,1724831457593,-500.0,0.0001452,2]
[336450843,1724831457603,-675.44,0.0001452,2]
[336450844,1724831457614,-500.0,0.0001452,2]
[336450845,1724831457624,-500.0,0.0001452,2]
[336450846,1724831457633,-500.0,0.0001452,2]
[336450847,1724831457643,-647.35,0.0001452,2]
[336450848,1724831457654,-616.07,0.0001452,2]
[336450849,1724831457665,-675.48,0.0001452,2]
[336450850,1724831457675,-1892.98,0.0001452,2]
[336450851,1724831457684,-521.63,0.0001452,2]
[336450852,1724831457694,-500.0,0.0001452,2]
[336450853,1724831457705,-500.0,0.0001452,2]
[336450854,1724831457715,-500.0,0.0001452,2]
[336450855,1724831457727,-3381.91,0.0001452,2]
[336450856,1724831457738,-1070.06,0.0001452,2]
[336450857,1724831457750,-1044.45,0.0001452,2]
[336450858,1724831457760,-2576.32,0.0001452,2]
[336450859,1724831457772,-500.0,0.00014794,2]
[336450860,1724831457781,-1164.21,0.00014794,2]
[336450861,1724831457791,-500.0,0.00014794,2]
[336450862,1724831457800,-2077.7,0.00014794,2]
[336450863,1724831457810,-848.26,0.00014794,2]
[336450864,1724831457819,-965.99,0.00014794,2]
[336450865,1724831457828,-500.0,0.00014794,2]
[336450866,1724831457838,-6837.97,0.00014794,2]
[336450867,1724831457849,-500.0,0.00014794,2]
[336450868,1724831457859,-675.44,0.00014794,2]
[336450869,1724831457870,-524.22,0.00014794,2]
[336450870,1724831457880,-500.0,0.00014794,2]
[336450871,1724831457889,-500.0,0.00014794,2]
[336450872,1724831457900,-616.07,0.00014794,2]
[336450873,1724831457911,-675.48,0.00014794,2]
[336450874,1724831457920,-1892.98,0.00014794,2]
[336450875,1724831457931,-500.0,0.00014794,2]
[336450876,1724831457942,-463.49740919,0.00014794,2]
[336450877,1724831457954,-500.0,0.00014794,2]
[336450878,1724831457965,-3381.91,0.00014794,2]
[336450879,1724831457974,-1070.06,0.00014794,2]
[336450880,1724831457984,-1044.45,0.00014794,2]
[336450881,1724831457997,-2576.32,0.00014794,2]
[336450882,1724831458008,-500.0,0.00015068,2]
[336450883,1724831458018,-1164.21,0.00015068,2]
[336450884,1724831458028,-500.0,0.00015068,2]
[336450885,1724831458037,-2077.7,0.00015068,2]
[336450886,1724831458047,-848.26,0.00015068,2]
[336450887,1724831458056,-965.99,0.00015068,2]
[336450888,1724831458066,-500.0,0.00015068,2]
[336450889,1724831458075,-6837.97,0.00015068,2]
[336450890,1724831458085,-394.77,0.00015068,2]
[336450891,1724831458095,-675.44,0.00015068,2]
[336450892,1724831458104,-500.0,0.00015068,2]
[336450893,1724831458114,-500.0,0.00015068,2]
[336450894,1724831458124,-616.07,0.00015068,2]
[336450895,1724831458134,-675.48,0.00015068,2]
[336450896,1724831458143,-1892.98,0.00015068,2]
[336450897,1724831458152,-500.0,0.00015068,2]
[336450898,1724831458162,-500.0,0.00015068,2]
[336450899,1724831458172,-3381.91,0.00015068,2]
[336450900,1724831458181,-1070.06,0.00015068,2]
[336450901,1724831458192,-1044.45,0.00015068,2]
[336450902,1724831458201,-2576.32,0.00015068,2]
[336450903,1724831458211,-1918.58350808,0.00015342,5]
[336450904,1724831458220,-500.0,0.00015342,2]
[336450905,1724831458229,-1164.21,0.00015342,2]
[336450906,1724831458240,-500.0,0.00015342,2]
[336450907,1724831458249,-2077.7,0.00015342,2]
[336450908,1724831458258,-848.26,0.00015342,2]
[336450909,1724831458268,-965.99,0.00015342,2]
[336450910,1724831458278,-155.97,0.00015342,2]
[336450911,1724831458287,-6837.97,0.00015342,2]
[336450912,1724831458298,-675.44,0.00015342,2]
[336450913,1724831458308,-500.0,0.00015342,2]
[336450914,1724831458320,-500.0,0.00015342,2]
[336450915,1724831458331,-616.07,0.00015342,2]
[336450916,1724831458341,-675.48,0.00015342,2]
[336450917,1724831458353,-1892.98,0.00015342,2]
[336450918,1724831458363,-500.0,0.00015342,2]
[336450919,1724831458373,-151.0,0.00015342,2]
[336450920,1724831458386,-500.0,0.00015342,2]
[336450921,1724831458397,-151.0,0.00015342,2]
[336450922,1724831458407,-3381.91,0.00015342,2]
[336450923,1724831458418,-1070.06,0.00015342,2]
[336450924,1724831458430,-515.872543,0.00015342,2]
[336450925,1724831458439,-515.872543,0.00015342,2]
[336450926,1724831458454,-1044.45,0.00015342,2]
[336450927,1724831458465,-2576.32,0.00015342,2]
[336450928,1724831458475,-150.112233,0.000156,2]
[336450929,1724831458485,-500.0,0.00015616,2]
[336450930,1724831458496,-1164.21,0.00015616,2]
[336450931,1724831458507,-500.0,0.00015616,2]
[336450932,1724831458520,-2077.7,0.00015616,2]
[336450933,1724831458530,-848.26,0.00015616,2]
[336450934,1724831458540,-965.99,0.00015616,2]
[336450935,1724831458551,-6837.97,0.00015616,2]
[336450936,1724831458560,-675.44,0.00015616,2]
[336450937,1724831458570,-600.84,0.00015616,2]
[336450938,1724831458581,-616.07,0.00015616,2]
[336450939,1724831458591,-675.48,0.00015616,2]
[336450940,1724831458602,-1892.98,0.00015616,2]
[336450941,1724831458614,-201.24,0.00015616,2]
[336450942,1724831458623,-500.0,0.00015616,2]
[336450943,1724831458633,-3381.91,0.00015616,2]
[336450944,1724831458644,-1070.06,0.00015616,2]
[336450945,1724831458656,-1044.45,0.00015616,2]
[336450946,1724831458668,-2576.32,0.00015616,2]
[336450947,1724831458680,-20806.3048966,0.00015641,2]
[336450948,1724831458692,-507.033528,0.00015747,2]
[336450949,1724831458702,-507.033528,0.00015747,2]
[336450950,1724831458712,-377.315765,0.00015747,2]
[336450951,1724831458722,-377.315765,0.00015747,2]
[336450952,1724831458732,-151.0,0.00015747,2]
[336450953,1724831458742,-151.0,0.00015747,2]
[336450954,1724831458754,-151.0,0.00015747,2]
[336450955,1724831458765,-151.0,0.00015747,2]
[336450956,1724831458777,-1675.026934,0.00015747,2]
[336450957,1724831458786,-1675.026934,0.00015747,2]
[336450958,1724831458797,-3446.954249,0.00015747,2]
[336450959,1724831458807,-3446.954249,0.00015747,2]
[336450960,1724831458816,-5528.49874877,0.00015818,2]
[336450961,1724831458826,-1012.24206773,0.00015849,2]
[336450962,1724831458836,-500.0,0.0001589,2]
[336450963,1724831458847,-1164.21,0.0001589,2]
[336450964,1724831458858,-437.49,0.0001589,2]
[336450965,1724831458868,-2077.7,0.0001589,2]
[336450966,1724831458877,-848.26,0.0001589,2]
[336450967,1724831458887,-965.99,0.0001589,2]
[336450968,1724831458897,-6837.97,0.0001589,2]
[336450969,1724831458906,-675.44,0.0001589,2]
[336450970,1724831458916,-616.07,0.0001589,2]
[336450971,1724831458926,-675.48,0.0001589,2]
[336450972,1724831458936,-1892.98,0.0001589,2]
[336450973,1724831458946,-500.0,0.0001589,2]
[336450974,1724831458956,-3381.91,0.0001589,2]
[336450975,1724831458965,-1070.06,0.0001589,2]
[336450976,1724831458975,-1044.45,0.0001589,2]
[336450977,1724831458985,-2576.32,0.0001589,2]
[336450978,1724831458994,-5528.49874877,0.0001593,2]
[336450979,1724831459004,-500.0,0.00016164,2]
[336450980,1724831459014,-1164.21,0.00016164,2]
[336450981,1724831459025,-2077.7,0.00016164,2]
[336450982,1724831459036,-848.26,0.00016164,2]
[336450983,1724831459046,-965.99,0.00016164,2]
[336450984,1724831459056,-6837.97,0.00016164,2]
[336450985,1724831459066,-675.44,0.00016164,2]
[336450986,1724831459077,-616.07,0.00016164,2]
[336450987,1724831459088,-675.48,0.00016164,2]
[336450988,1724831459100,-1892.98,0.00016164,2]
[336450989,1724831459111,-500.0,0.00016164,2]
[336450990,1724831459122,-3381.91,0.00016164,2]
[336450991,1724831459133,-1070.06,0.00016164,2]
[336450992,1724831459144,-1044.45,0.00016164,2]
[336450993,1724831459154,-2576.32,0.00016164,2]
[336450994,1724831459164,-5528.49874877,0.00016295,2]
[336450995,1724831459175,-500.0,0.00016438,2]
[336450996,1724831459185,-1164.21,0.00016438,2]
[336450997,1724831459195,-2077.7,0.00016438,2]
[336450998,1724831459206,-848.26,0.00016438,2]
[336450999,1724831459216,-965.99,0.00016438,2]
[336451000,1724831459226,-6837.97,0.00016438,2]
[336451001,1724831459236,-675.44,0.00016438,2]
[336451002,1724831459245,-616.07,0.00016438,2]
[336451003,1724831459255,-675.48,0.00016438,2]
[336451004,1724831459265,-1892.98,0.00016438,2]
[336451005,1724831459276,-210.48874845,0.00016438,2]
[336451006,1724831459287,-3381.91,0.00016438,2]
[336451007,1724831459298,-1070.06,0.00016438,2]
[336451008,1724831459308,-1044.45,0.00016438,2]
[336451009,1724831459318,-2576.32,0.00016438,2]
[336451010,1724831459328,-5528.49874877,0.00016641,2]
[336451011,1724831459337,-500.0,0.00016712,2]
[336451012,1724831459347,-1164.21,0.00016712,2]
[336451013,1724831459359,-2077.7,0.00016712,2]
[336451014,1724831459369,-848.26,0.00016712,2]
[336451015,1724831459380,-965.99,0.00016712,2]
[336451016,1724831459390,-6837.97,0.00016712,2]
[336451017,1724831459400,-675.44,0.00016712,2]
[336451018,1724831459409,-616.07,0.00016712,2]
[336451019,1724831459419,-675.48,0.00016712,2]
[336451020,1724831459428,-1892.98,0.00016712,2]
[336451021,1724831459438,-3381.91,0.00016712,2]
[336451022,1724831459452,-1070.06,0.00016712,2]
[336451023,1724831459462,-1044.45,0.00016712,2]
[336451024,1724831459472,-2576.32,0.00016712,2]
[336451025,1724831459482,-5528.49874877,0.00016817,2]
[336451026,1724831459491,-150.112233,0.000169,2]
[336451027,1724831459500,-587.45,0.00016986,2]
[336451028,1724831459509,-1164.21,0.00016986,2]
[336451029,1724831459519,-2077.7,0.00016986,2]
[336451030,1724831459536,-848.26,0.00016986,2]
[336451031,1724831459546,-965.99,0.00016986,2]
[336451032,1724831459557,-6837.97,0.00016986,2]
[336451033,1724831459568,-675.44,0.00016986,2]
[336451034,1724831459578,-616.07,0.00016986,2]
[336451035,1724831459590,-675.48,0.00016986,2]
[336451036,1724831459601,-1892.98,0.00016986,2]
[336451037,1724831459610,-3381.91,0.00016986,2]
[336451038,1724831459621,-1070.06,0.00016986,2]
[336451039,1724831459631,-1044.45,0.00016986,2]
[336451040,1724831459643,-5528.49874877,0.00017184,2]
[336451041,1724831459653,-1164.41173723,0.0001726,2]
[336451042,1724831459662,-2077.79198711,0.0001726,2]
[336451043,1724831459671,-848.27328553,0.0001726,2]
[336451044,1724831459681,-966.14,0.0001726,2]
[336451045,1724831459691,-6838.03510991,0.0001726,2]
[336451046,1724831459700,-675.47,0.0001726,2]
[336451047,1724831459709,-616.11657277,0.0001726,2]
[336451048,1724831459747,-675.55,0.0001726,2]
[336451049,1724831459756,-1893.12420164,0.0001726,2]
[336451050,1724831459765,-3382.00591775,0.0001726,2]
[336451051,1724831459775,-1070.23,0.0001726,2]
[336451052,1724831459784,-5528.49874877,0.0001749,2]
[336451053,1724831459793,-5528.49874877,0.00017757,2]
[336451054,1724831459803,-5528.49874877,0.00017846,2]
[336451055,1724831459812,-918.016429,0.00017856,2]
[336451056,1724831459821,-918.016429,0.00017856,2]
[336451057,1724831459830,-151.0,0.00017856,2]
[336451058,1724831459839,-967.547218,0.00017856,2]
[336451059,1724831459849,-967.547218,0.00017856,2]
[336451060,1724831459858,-150.112233,0.000182,2]
[336451061,1724831459868,-5528.49874877,0.00018266,2]
[336451062,1724831459879,-700.0,0.00018543,2]
[336451063,1724831459890,-5528.49874877,0.0001855,2]
[336451064,1724831459901,-1400.0,0.00018635,2]
[336451065,1724831459911,-700.0,0.0001865,2]
[336451066,1724831459920,-1400.0,0.00018681,2]
[336451067,1724831459931,-5528.49874877,0.00018755,2]
[336451068,1724831459940,-2000.0,0.00018789,2]
[336451069,1724831459949,-2000.0,0.00018803,2]
[336451070,1724831459958,-150.0,0.00018819,2]
[336451071,1724831459968,-3200.0,0.00018819,2]
[336451072,1724831459977,-300.0,0.00018819,2]
[336451073,1724831459986,-500.0,0.00018838,2]
[336451074,1724831459995,-1700.0,0.00018838,2]
[336451075,1724831460005,-1400.0,0.00018876,2]
[336451076,1724831460015,-570.03829,0.00018904,2]
[336451077,1724831460024,-5528.49874877,0.0001894,2]
[336451078,1724831460034,-150.0,0.00019112,2]
[336451079,1724831460044,-522.0,0.00019112,2]
[336451080,1724831460053,-260.703731,0.00019178,2]
[336451081,1724831460064,-251.0,0.00019178,2]
[336451082,1724831460074,-241.82106656,0.0001918,2]
[336451083,1724831460083,-241.82106656,0.0001918,2]
[336451084,1724831460092,-241.82106656,0.0001918,2]
[336451085,1724831460101,-241.82106656,0.0001918,2]
[336451086,1724831460111,-241.82106656,0.0001918,2]
[336451087,1724831460120,-241.82106656,0.0001918,2]
[336451088,1724831460130,-241.82106656,0.0001918,2]
[336451089,1724831460140,-241.82106656,0.0001918,2]
[336451090,1724831460150,-241.82106656,0.0001918,2]
[336451091,1724831460160,-241.82106656,0.0001918,2]
[336451092,1724831460171,-241.82106656,0.0001918,2]
[336451093,1724831460180,-241.82106656,0.0001918,2]
[336451094,1724831460192,-241.82106656,0.0001918,2]
[336451095,1724831460202,-241.82106656,0.0001918,2]
[336451096,1724831460211,-241.82106656,0.0001918,2]
[336451097,1724831460221,-241.82106656,0.0001918,2]
[336451098,1724831460231,-241.82106656,0.0001918,2]
[336451099,1724831460241,-241.82106656,0.0001918,2]
[336451100,1724831460250,-241.82106656,0.0001918,2]
[336451101,1724831460259,-242.32,0.0001918,2]
[336451102,1724831460268,-153.38504374,0.0001918,2]
[336451103,1724831460281,-153.38504374,0.0001918,2]
[336451104,1724831460290,-153.38504374,0.0001918,2]
[336451105,1724831460301,-153.38504374,0.0001918,2]
[336451106,1724831460310,-153.38504374,0.0001918,2]
[336451107,1724831460319,-153.38504374,0.0001918,2]
[336451108,1724831460328,-153.38504374,0.0001918,2]
[336451109,1724831460338,-153.38504374,0.0001918,2]
[336451110,1724831460347,-153.38504374,0.0001918,2]
[336451111,1724831460357,-153.38504374,0.0001918,2]
[336451112,1724831460367,-153.38504374,0.0001918,2]
[336451113,1724831460376,-153.38504374,0.0001918,2]
[336451114,1724831460386,-153.38504374,0.0001918,2]
[336451115,1724831460395,-153.38504374,0.0001918,2]
[336451116,1724831460405,-153.38504374,0.0001918,2]
[336451117,1724831460414,-153.38504374,0.0001918,2]
[336451118,1724831460423,-153.38504374,0.0001918,2]
[336451119,1724831460433,-153.38504374,0.0001918,2]
[336451120,1724831460442,-153.38504374,0.0001918,2]
[336451121,1724831460455,-153.88,0.0001918,2]
[336451122,1724831460465,-643.64520655,0.00019279,2]
[336451123,1724831460642,-500.0,0.00010958,2]
[336451124,1724831460651,-500.0,0.00010958,2]
[336451125,1724831460661,-500.0,0.00010958,2]
[336451126,1724831460671,-500.0,0.00011232,2]
[336451127,1724831460680,-500.0,0.00011232,2]
[336451128,1724831460690,-500.0,0.00011232,2]
[336451129,1724831460701,-500.0,0.00011506,2]
[336451130,1724831460710,-500.0,0.00011506,2]
[336451131,1724831460719,-500.0,0.00011506,2]
[336451132,1724831460729,-1177.329661,0.00012898,2]
[336451133,1724831460739,-1177.329661,0.00015342,2]
[336451134,1724831460749,-2576.32,0.00016986,2]
[336451135,1724831460759,-1044.67,0.0001726,2]
[336451136,1724831460768,-2576.55262362,0.0001726,2]
[336451137,1724831460780,-4884.85354222,0.00019279,2]
[336451138,1724831460789,-1400.0,0.00019301,2]
[336451139,1724831460799,-700.0,0.00019472,2]
[336451140,1724831460808,-1700.0,0.00019473,2]
[336451141,1724831460818,-1700.0,0.00019489,2]
[336451142,1724831460827,-150.112233,0.000195,2]
[336451143,1724831460836,-150.0,0.00019528,2]
[336451144,1724831460846,-5528.49874877,0.0001955,2]
[336451145,1724831460855,-700.0,0.00019709,2]
[336451146,1724831460867,-1400.0,0.00019722,2]
[336451147,1724831460877,-700.0,0.00019734,2]
[336451148,1724831460887,-1700.0,0.00019795,2]
[336451149,1724831460896,-150.0,0.00019796,2]
[336451150,1724831460907,-5528.49874877,0.00019909,2]
[336451151,1724831460916,-700.0,0.00019919,2]
[336451152,1724831460925,-500.0,0.00019972,2]
[336451153,1724831460934,-1400.0,0.00019992,2]
[336451154,1724831460946,-223.60838586,0.0002,2]
[336451155,1724831460956,-12900.0,0.0002,2]
[336451156,1724831460966,-360.97746608,0.0002,2]
[336451157,1724831460975,-400.0,0.0002,7]
[336451158,1724831460985,-151.0,0.0002,2]
[336451159,1724831460995,-151.0,0.0002,2]
[336451160,1724831461006,-515.872543,0.0002,2]
[336451161,1724831461016,-515.872543,0.0002,2]
[336451162,1724831461027,-1177.329661,0.0002,2]
[336451163,1724831461036,-151.0,0.00020034,2]
[336451164,1724831461045,-1400.0,0.00020112,2]
[336451165,1724831461055,-150.0,0.00020141,2]
[336451166,1724831461065,-5528.49874877,0.00020173,2]
[336451167,1724831461074,-2000.0,0.00020244,2]
[336451168,1724831461086,-700.0,0.00020248,2]
[336451169,1724831461097,-2000.0,0.0002026,2]
[336451170,1724831461107,-1400.0,0.00020269,2]
[336451171,1724831461117,-150.0,0.00020381,2]
[336451172,1724831461126,-1400.0,0.00020436,2]
[336451173,1724831461136,-5528.49874877,0.00020502,2]
[336451174,1724831461145,-818.747697,0.00020515,2]
[336451175,1724831461155,-150.0,0.00020557,2]
[336451176,1724831461167,-500.0,0.00020564,2]
[336451177,1724831461176,-1400.0,0.00020581,2]
[336451178,1724831461186,-1700.0,0.00020632,2]
[336451179,1724831461195,-1390.96680715,0.00020654,2]
[336451180,1724831461214,-9.03319285,0.00020654,2]
[336451181,1724831461224,-431.35426544,0.00020707,2]
[336451182,1724831461510,-273.37336231,9.9e-05,2]
[336451183,1724831461521,-47.17347359,0.00010958,2]
[336451184,1724831461592,-372.66054273,0.00010958,2]
[336451205,1724832426148,-381.07314139,9.335e-05,2]
[336451230,1724832549122,-422.69720013,8.861e-05,2]
[336451231,1724832549148,-41.62405874,9.335e-05,2]
[336451232,1724832549168,-166.22384774,9.335e-05,2]
[336451233,1724832549341,-946.15691161,9.524e-05,2]
[336451234,1724832551140,-6045.41773322,9.524e-05,2]
[336451235,1724832553158,-180.30126859,9.524e-05,2]
[336451236,1724832554181,-211.7276172,9.929e-05,2]
[336451237,1724832554204,-806.48893364,0.0001026,2]
[336451238,1724832561108,-6914.18313659,8.861e-05,2]
[336451239,1724832564132,-295.31359305,8.861e-05,2]
[336451240,1724832564155,-128.16317768,0.0001026,2]
[336451243,1724832589366,170.0,0.00018678,120]
[336451328,1724832638098,-196.90814632,0.00010739,2]
[336451330,1724832638109,-3000.0,0.00010858,2]
[336451332,1724832638122,-300.0,0.00010957,2]
[336451333,1724832638134,-500.0,0.00010958,2]
[336451335,1724832638145,-337.22,0.00010958,2]
[336451336,1724832638155,-601.60220496,0.00010958,2]
[336451337,1724832638165,-507.2,0.00010958,2]
[336451338,1724832638174,-500.0,0.00010958,2]
[336451339,1724832638184,-500.0,0.00010958,2]
[336451340,1724832638195,-500.0,0.00010958,2]
[336451341,1724832638207,-500.0,0.00010958,2]
[336451342,1724832638216,-500.0,0.00010958,2]
[336451343,1724832638227,-500.0,0.00010958,2]
[336451344,1724832638236,-500.0,0.00010958,2]
[336451345,1724832638250,-523.41306788,0.00010958,2]
[336451346,1724832638262,-500.0,0.00010958,2]
[336451347,1724832638273,-500.0,0.00010958,2]
[336451348,1724832638283,-500.0,0.00010958,2]
[336451349,1724832638294,-500.0,0.00010958,2]
[336451350,1724832638303,-500.0,0.00010958,2]
[336451351,1724832638313,-529.22,0.00010958,2]
[336451352,1724832638323,-500.0,0.00010958,2]
[336451353,1724832638334,-500.0,0.00010958,2]
[336451354,1724832638344,-500.0,0.00010958,2]
[336451355,1724832638355,-328.27981248,0.00010958,2]
[336451356,1724832638366,-500.0,0.00010958,2]
[336451357,1724832638376,-500.0,0.00010958,2]
[336451358,1724832638387,-503.01359433,0.00010958,2]
[336451359,1724832638397,-500.0,0.00010958,2]
[336451360,1724832638406,-500.0,0.00010958,2]
[336451361,1724832638416,-501.94622193,0.00010958,2]
[336451362,1724832638426,-500.0,0.00010958,2]
[336451363,1724832638435,-500.0,0.00010958,2]
[336451364,1724832638447,-501.70415302,0.00010958,2]
[336451365,1724832638457,-500.0,0.00010958,2]
[336451366,1724832638466,-501.86397606,0.00010958,2]
[336451367,1724832638476,-500.0,0.00010958,2]
[336451368,1724832638485,-500.0,0.00010958,2]
[336451369,1724832638496,-500.0,0.00010958,2]
[336451370,1724832638506,-500.70046625,0.00010958,2]
[336451371,1724832638516,-500.0,0.00010958,2]
[336451372,1724832638526,-500.0,0.00010958,2]
[336451373,1724832638535,-500.0,0.00010958,2]
[336451374,1724832638545,-500.0,0.00010958,2]
[336451375,1724832638554,-500.0,0.00010958,2]
[336451376,1724832638563,-500.0,0.00010958,2]
[336451377,1724832638573,-500.0,0.00010958,2]